bitfinex/quotes_BTCUSD_20250614
["timestamp","ask_amount","ask_price","bid_price","bid_amount"]
[1749937706122,0.01896497,105450.0,105440.0,0.51727313]
[1749937706610,0.01896497,105450.0,105440.0,0.4432118]
[1749937706859,0.02844777,105450.0,105440.0,0.4432118]
[1749937707108,0.02844768,105450.0,105440.0,0.4432118]
[1749937707755,0.03340451,105450.0,105440.0,0.4432118]
[1749937707971,0.03340451,105450.0,105440.0,0.4410918]
[1749937708174,0.03340451,105450.0,105440.0,0.51502113]
[1749937708633,0.42142538,105460.0,105450.0,0.19914632]
[1749937708843,0.23700334,105460.0,105450.0,0.19914632]
[1749937709059,0.23032762,105460.0,105450.0,0.19914632]
[1749937709270,0.23032762,105460.0,105450.0,0.2371371]
[1749937709713,0.23032762,105460.0,105450.0,0.36970632]
[1749937709930,0.23032762,105460.0,105450.0,0.37918921]
[1749937710623,0.23032762,105460.0,105450.0,0.36022334]
[1749937710844,0.23032762,105460.0,105450.0,0.36970641]
[1749937711286,0.77058137,105460.0,105450.0,0.36970641]
[1749937711520,0.77725704,105460.0,105450.0,0.37918939]
[1749937711727,0.77725709,105460.0,105450.0,0.37918939]
[1749937711934,0.77058137,105460.0,105450.0,0.37886939]
[1749937712139,0.78615807,105460.0,105450.0,0.37886939]
[1749937712383,0.77948234,105460.0,105450.0,0.37886939]
[1749937712600,0.79564005,105460.0,105450.0,0.36938641]
[1749937712829,0.79564004,105460.0,105450.0,0.44346946]
[1749937713070,0.78006336,105460.0,105450.0,0.45295235]
[1749937713282,0.78006336,105460.0,105450.0,0.46243515]
[1749937713542,0.7889643,105460.0,105450.0,0.46243515]
[1749937713770,0.79564,105460.0,105450.0,0.46243515]
[1749937713982,0.79564011,105460.0,105450.0,0.46243515]
[1749937714202,0.7867391,105460.0,105450.0,0.46243515]
[1749937714416,0.79564006,105460.0,105450.0,0.46243515]
[1749937714635,0.78673904,105460.0,105450.0,0.46243515]
[1749937714859,0.78673907,105460.0,105450.0,0.46243515]
[1749937715092,0.78896431,105460.0,105450.0,0.46243515]
[1749937715301,0.78006336,105460.0,105450.0,0.40731779]
[1749937715572,0.79563997,105460.0,105450.0,0.40731779]
[1749937715779,0.78896427,105460.0,105450.0,0.40731779]
[1749937715996,0.79563995,105460.0,105450.0,0.40731779]
[1749937716209,0.79564005,105460.0,105450.0,0.40731779]
[1749937716437,0.78896433,105460.0,105450.0,0.40731779]
[1749937716649,0.79564004,105460.0,105450.0,0.40731779]
[1749937716860,0.78896432,105460.0,105450.0,0.40731779]
[1749937717072,0.78896432,105460.0,105450.0,0.39783508]
[1749937717249,0.78896433,105460.0,105450.0,0.39783508]
[1749937717533,0.79564005,105460.0,105450.0,0.38835228]
[1749937718176,0.81082665,105460.0,105450.0,0.38835228]
[1749937718387,0.81082671,105460.0,105450.0,0.38835228]
[1749937718597,0.79524996,105460.0,105450.0,0.38835228]
[1749937718807,0.81082668,105460.0,105450.0,0.38835228]
[1749937719013,0.8019257,105460.0,105450.0,0.38835228]
[1749937719222,0.79524996,105460.0,105450.0,0.38835228]
[1749937719437,0.80134467,105460.0,105450.0,0.37886939]
[1749937719650,0.77948234,105460.0,105450.0,0.37886939]
[1749937720123,0.77948232,105460.0,105450.0,0.37886939]
[1749937720315,0.78615814,105460.0,105450.0,0.37886939]
[1749937720556,0.78615817,105460.0,105450.0,0.37886939]
[1749937720771,0.7794824,105460.0,105450.0,0.37886939]
[1749937720981,0.77725714,105460.0,105450.0,0.37886939]
[1749937721376,0.78615816,105460.0,105450.0,0.37886939]
[1749937721799,0.78615817,105460.0,105450.0,0.37886939]
[1749937722014,0.77667591,105460.0,105450.0,0.17024]
[1749937722230,0.76109911,105460.0,105450.0,0.17972316]
[1749937722459,0.77000014,105460.0,105450.0,0.37886957]
[1749937722681,0.76109911,105460.0,105450.0,0.37886957]
[1749937723111,0.7699894,105460.0,105450.0,0.37886957]
[1749937723326,0.76109911,105460.0,105450.0,0.37886957]
[1749937723540,0.76998944,105460.0,105450.0,0.17024]
[1749937723758,0.01896749,105440.0,105430.0,0.34540231]
[1749937724040,0.03793426,105440.0,105430.0,0.54445498]
[1749937724490,0.03793426,105440.0,105430.0,0.54437498]
[1749937724708,0.22761631,105440.0,105430.0,0.2747865]
[1749937724971,0.75838654,105440.0,105430.0,0.50199119]
[1749937725205,0.75838654,105440.0,105430.0,0.51147579]
[1749937725434,0.75838654,105440.0,105430.0,0.29575579]
[1749937725665,0.75838654,105440.0,105430.0,0.46435579]
[1749937725899,0.73941905,105440.0,105430.0,0.17056]
[1749937726136,0.73941905,105440.0,105430.0,0.18004496]
[1749937726356,0.73941905,105440.0,105430.0,0.18204496]
[1749937726572,0.72993508,105440.0,105430.0,0.18004496]
[1749937727028,0.72993508,105440.0,105430.0,0.18092496]
[1749937727238,0.72993508,105440.0,105430.0,0.19040983]
[1749937727483,0.74702086,105440.0,105430.0,0.37062428]
[1749937728989,0.74702086,105440.0,105430.0,0.20218428]
[1749937729208,0.74702086,105440.0,105430.0,0.18060496]
[1749937729636,0.84068928,105440.0,105430.0,0.18060496]
[1749937730609,0.84068928,105440.0,105430.0,0.37030428]
[1749937731017,0.74702086,105440.0,105430.0,0.37030428]
[1749937731227,0.74702086,105440.0,105430.0,0.37978915]
[1749937734524,0.74702086,105440.0,105430.0,0.37926915]
[1749937734952,0.74702086,105440.0,105430.0,0.1706]
[1749937735822,0.74702086,105440.0,105430.0,0.18008496]
[1749937738621,0.20676711,105440.0,105430.0,0.36978428]
[1749937738821,0.74702086,105440.0,105430.0,0.36978428]
[1749937739480,0.74702086,105440.0,105430.0,0.1706]
[1749937739774,0.21172455,105440.0,105430.0,0.1706]
[1749937739921,0.7519783,105440.0,105430.0,0.1706]
[1749937740837,0.55120377,105440.0,105430.0,0.1706]
[1749937741050,0.7408851,105440.0,105430.0,0.1706]
[1749937741480,0.7717851,105440.0,105430.0,0.1706]
[1749937741807,0.7717851,105440.0,105430.0,0.003]
[1749937742016,0.7717851,105440.0,105430.0,0.16976]
[1749937742775,0.7717851,105440.0,105430.0,0.003]
[1749937742994,0.7717851,105440.0,105430.0,0.16968]
[1749937744110,0.80032381,105440.0,105430.0,0.003]
[1749937744343,0.7717851,105440.0,105430.0,0.16952]
[1749937745221,0.7717851,105440.0,105430.0,0.003]
[1749937745458,0.7717851,105440.0,105430.0,0.16952]
[1749937747767,0.23153135,105440.0,105430.0,0.16952]
[1749937748029,0.7717851,105440.0,105430.0,0.16952]
[1749937751343,0.7717851,105440.0,105430.0,0.16884]
[1749937751777,0.86802686,105440.0,105430.0,0.16884]
[1749937751991,0.86802686,105440.0,105430.0,0.16872]
[1749937752205,1.30417608,105440.0,105430.0,0.003]
[1749937752415,1.30417608,105440.0,105430.0,0.16872]
[1749937752628,0.77059972,105440.0,105430.0,0.003]
[1749937752838,1.30417608,105440.0,105430.0,0.16868]
[1749937753241,1.30417608,105440.0,105430.0,0.16768]
[1749937753452,0.19918419,105430.0,105420.0,0.2181723]
[1749937753625,0.75106657,105430.0,105420.0,0.3838123]
[1749937753836,0.75106657,105430.0,105420.0,0.17512586]
[1749937754042,0.75106657,105430.0,105420.0,0.16564]
[1749937754682,0.75106657,105430.0,105410.0,0.32631155]
[1749937754874,0.75106657,105430.0,105420.0,0.16576]
[1749937755425,0.75106657,105430.0,105420.0,0.17524586]
[1749937756809,0.77961797,105430.0,105420.0,0.17524586]
[1749937757025,0.77961797,105430.0,105420.0,0.36496318]
[1749937758226,0.23936422,105430.0,105420.0,0.36496318]
[1749937758434,0.77961797,105430.0,105420.0,0.36496318]
[1749937758817,0.01897064,105420.0,105410.0,0.3207082]
[1749937759024,0.21817373,105420.0,105410.0,0.49551442]
[1749937759238,0.22765941,105420.0,105410.0,0.47270055]
[1749937759447,0.03794209,105420.0,105410.0,0.47270055]
[1749937759663,0.04290008,105420.0,105410.0,0.47270055]
[1749937760090,0.04290008,105420.0,105410.0,0.47384319]
[1749937760293,0.04290008,105420.0,105410.0,0.26332319]
[1749937760503,0.05238549,105420.0,105410.0,0.47580319]
[1749937760925,0.24210281,105420.0,105410.0,0.46631706]
[1749937761141,0.23261812,105420.0,105410.0,0.29155084]
[1749937761355,0.22313262,105420.0,105410.0,0.42409102]
[1749937761568,0.22313262,105420.0,105410.0,0.43357733]
[1749937762229,0.22313262,105420.0,105410.0,0.46467733]
[1749937762447,0.22313262,105420.0,105410.0,0.25243733]
[1749937762663,0.22313262,105420.0,105410.0,0.46467733]
[1749937762872,0.22313262,105420.0,105410.0,0.25243733]
[1749937763125,0.22313262,105420.0,105410.0,0.22133733]
[1749937763343,0.22313262,105420.0,105410.0,0.43349733]
[1749937763552,0.22313262,105420.0,105410.0,0.43345733]
[1749937764397,0.0144434,105420.0,105410.0,0.43345733]
[1749937764607,0.02392899,105420.0,105410.0,0.45242968]
[1749937764816,0.02392899,105420.0,105410.0,0.28750968]
[1749937765025,0.02392899,105420.0,105410.0,0.45234968]
[1749937765026,0.66350835,105420.0,105410.0,0.45234968]
[1749937765247,0.67299421,105420.0,105410.0,0.40510968]
[1749937765922,0.66350835,105420.0,105410.0,0.40410968]
[1749937766128,0.66350835,105420.0,105410.0,0.23730968]
[1749937766334,0.66350835,105420.0,105410.0,0.40206968]
[1749937767080,0.84374098,105420.0,105410.0,0.00014264]
[1749937767293,0.84374098,105420.0,105410.0,0.3734512]
[1749937767505,0.84374098,105420.0,105410.0,0.00014264]
[1749937767718,0.84374098,105420.0,105410.0,0.18371607]
[1749937767932,0.84374098,105420.0,105410.0,0.19936471]
[1749937768147,0.83425539,105420.0,105410.0,0.36388471]
[1749937768358,0.83425539,105420.0,105410.0,0.19936471]
[1749937768567,0.82476962,105420.0,105410.0,0.1741094]
[1749937768771,0.82476962,105420.0,105410.0,0.0096294]
[1749937768979,0.82476962,105420.0,105410.0,0.1741094]
[1749937769212,0.82476962,105420.0,105410.0,0.1740694]
[1749937769633,0.82476962,105420.0,105410.0,0.0096294]
[1749937770036,0.82476962,105420.0,105410.0,0.1739894]
[1749937770490,0.85636962,105420.0,105410.0,0.1739894]
[1749937770969,0.85636962,105420.0,105410.0,0.18347607]
[1749937771686,0.85636962,105420.0,105410.0,0.37321138]
[1749937772234,0.85636962,105420.0,105410.0,0.38269796]
[1749937773564,0.77601492,105420.0,105410.0,0.38269796]
[1749937773946,0.77601492,105420.0,105410.0,0.38209796]
[1749937776922,0.00948613,105410.0,105400.0,0.20863116]
[1749937777138,0.76793502,105410.0,105400.0,0.42739927]
[1749937778359,0.76793502,105410.0,105400.0,0.42839927]
[1749937778561,0.86408424,105410.0,105400.0,0.42839927]
[1749937779401,0.93213289,105410.0,105400.0,0.43039927]
[1749937779914,0.83598367,105410.0,105400.0,0.25719215]
[1749937780104,0.83598367,105410.0,105400.0,0.43011936]
[1749937780574,0.83598367,105410.0,105400.0,0.26667936]
[1749937780799,0.83598367,105410.0,105400.0,0.43007936]
[1749937782779,0.22768127,105410.0,105400.0,0.43007936]
[1749937782989,0.91301773,105410.0,105400.0,0.43007936]
[1749937783663,0.91301773,105410.0,105400.0,0.22111936]
[1749937783877,0.83598367,105410.0,105400.0,0.38427936]
[1749937784089,0.83598367,105410.0,105400.0,0.38411936]
[1749937784303,0.86758367,105410.0,105400.0,0.38411936]
[1749937785826,0.85809754,105410.0,105400.0,0.37459215]
[1749937786992,0.87008878,105410.0,105400.0,0.37459215]
[1749937790777,0.87008878,105410.0,105400.0,0.37415215]
[1749937791781,0.87008878,105410.0,105400.0,0.21163215]
[1749937791983,0.87008878,105410.0,105400.0,0.37415215]
[1749937793681,0.87008878,105410.0,105400.0,0.16552]
[1749937793901,0.85111571,105410.0,105400.0,0.16552]
[1749937794113,0.85111571,105410.0,105400.0,0.16524]
[1749937794728,0.85111571,105410.0,105400.0,0.003]
[1749937795390,0.85111571,105410.0,105400.0,0.16516]
[1749937795599,0.85111571,105410.0,105400.0,0.16512]
[1749937795787,0.85111571,105410.0,105400.0,0.16508]
[1749937796254,0.85111571,105410.0,105400.0,0.003]
[1749937796487,0.85111571,105410.0,105400.0,0.16508]
[1749937798258,0.85111571,105410.0,105400.0,0.16488]
[1749937800383,0.24281331,105410.0,105400.0,0.16488]
[1749937800598,0.83912447,105410.0,105400.0,0.16488]
[1749937804811,0.93536623,105410.0,105400.0,0.003]
[1749937805025,0.96556623,105410.0,105400.0,0.1644]
[1749937805236,0.97224159,105410.0,105400.0,0.1644]
[1749937805473,0.97224172,105410.0,105400.0,0.1644]
[1749937805684,1.06171545,105410.0,105400.0,0.1614]
[1749937805900,0.1992408,105400.0,105390.0,0.20874765]
[1749937806107,0.8075432,105400.0,105390.0,0.41418765]
[1749937806562,0.81250198,105400.0,105390.0,0.41418765]
[1749937807451,0.81250198,105400.0,105390.0,0.40469936]
[1749937807658,0.87359691,105400.0,105390.0,0.40469936]
[1749937807869,0.87359691,105400.0,105390.0,0.41418774]
[1749937808092,0.87359691,105400.0,105390.0,0.42367603]
[1749937808790,0.87359691,105400.0,105390.0,0.41418774]
[1749937809003,0.87359691,105400.0,105390.0,0.40469936]
[1749937809215,0.87359691,105400.0,105390.0,0.41418774]
[1749937809865,0.87359691,105400.0,105390.0,0.42367603]
[1749937813377,0.87359691,105400.0,105390.0,0.41418774]
[1749937813611,0.86410943,105400.0,105390.0,0.41418774]
[1749937816994,0.8030145,105400.0,105390.0,0.40469936]
[1749937817213,0.8030145,105400.0,105390.0,0.41418774]
[1749937817422,0.8030145,105400.0,105390.0,0.40469927]
[1749937818555,0.8030145,105400.0,105390.0,0.36065927]
[1749937818744,0.8030145,105400.0,105390.0,0.36065945]
[1749937818972,0.1947121,105400.0,105390.0,0.3796363]
[1749937819195,0.8030145,105400.0,105390.0,0.3796363]
[1749937819927,0.1947121,105400.0,105390.0,0.3796363]
[1749937820166,0.8030145,105400.0,105390.0,0.37014792]
[1749937820592,0.8030145,105400.0,105390.0,0.3796363]
[1749937821075,0.8030145,105400.0,105390.0,0.4128363]
[1749937821278,0.8030145,105400.0,105390.0,0.3796363]
[1749937821697,0.86900251,105400.0,105390.0,0.3796363]
[1749937827366,0.90080251,105400.0,105390.0,0.3796363]
[1749937828910,0.26070011,105400.0,105390.0,0.3796363]
[1749937829127,0.86900251,105400.0,105390.0,0.3796363]
[1749937829773,0.8348145,105400.0,105390.0,0.3796363]
[1749937830404,0.00948829,105390.0,105380.0,0.23242928]
[1749937830620,0.63676664,105390.0,105380.0,0.46537631]
[1749937831738,0.63676664,105390.0,105380.0,0.26189631]
[1749937831949,0.63676664,105390.0,105380.0,0.46637631]
[1749937832607,0.63676664,105390.0,105380.0,0.46837631]
[1749937832822,0.65555016,105390.0,105380.0,0.46837631]
[1749937835803,0.65555016,105390.0,105380.0,0.46769631]
[1749937836532,1.46311244,105390.0,105380.0,0.45820748]
[1749937837366,1.46311244,105390.0,105380.0,0.45720748]
[1749937837574,0.85481004,105390.0,105380.0,0.45720748]
[1749937838158,0.85481004,105390.0,105380.0,0.45520748]
[1749937838871,0.85481004,105390.0,105380.0,0.25140748]
[1749937839090,0.85481004,105390.0,105380.0,0.45520748]
[1749937839513,0.92846527,105390.0,105380.0,0.41251874]
[1749937839723,0.92846527,105390.0,105380.0,0.42200784]
[1749937839955,1.53676767,105390.0,105380.0,0.42200784]
[1749937840183,1.53676767,105390.0,105380.0,0.43149685]
[1749937840449,1.49285244,105390.0,105380.0,0.27105685]
[1749937840692,1.48336451,105390.0,105380.0,0.43149685]
[1749937841153,0.87506211,105390.0,105380.0,0.43149685]
[1749937841372,1.48336451,105390.0,105380.0,0.43149685]
[1749937843077,1.48336451,105390.0,105380.0,0.22769685]
[1749937843291,1.48336451,105390.0,105380.0,0.43149685]
[1749937843742,0.07698821,105390.0,105380.0,0.44098568]
[1749937843948,1.49285289,105390.0,105380.0,0.43149685]
[1749937844167,1.49285289,105390.0,105380.0,0.44098577]
[1749937845993,1.49285289,105390.0,105380.0,0.43149685]
[1749937846619,0.27624809,105390.0,105380.0,0.43149685]
[1749937846826,1.49285289,105390.0,105380.0,0.43149685]
[1749937847244,0.27624809,105390.0,105380.0,0.43149685]
[1749937847465,1.49285289,105390.0,105380.0,0.43149685]
[1749937847901,1.50597227,105390.0,105380.0,0.43149685]
[1749937849722,1.50597227,105390.0,105380.0,0.44098577]
[1749937850155,1.50597227,105390.0,105380.0,0.43149685]
[1749937850612,1.50597227,105390.0,105380.0,0.44098577]
[1749937851429,1.50597227,105390.0,105380.0,0.43149685]
[1749937851637,1.50597227,105390.0,105380.0,0.44098577]
[1749937853593,0.02846658,105380.0,105370.0,0.31311763]
[1749937853771,0.64808022,105380.0,105370.0,0.44530057]
[1749937853971,0.64808022,105380.0,105370.0,0.24150057]
[1749937854178,0.6575695,105380.0,105370.0,0.45479066]
[1749937854784,0.64822239,105380.0,105370.0,0.45479066]
[1749937855608,0.65771167,105380.0,105370.0,0.45479066]
[1749937855812,0.75386089,105380.0,105370.0,0.45679066]
[1749937856213,0.75386089,105380.0,105370.0,0.45779066]
[1749937856622,0.65771167,105380.0,105370.0,0.45779066]
[1749937860138,0.49095257,105380.0,105370.0,0.45779066]
[1749937860501,0.5099305,105380.0,105370.0,0.45779066]
[1749937861264,0.50992987,105380.0,105370.0,0.45779066]
[1749937861448,0.50992987,105380.0,105370.0,0.48779066]
[1749937861850,0.50992987,105380.0,105370.0,0.45779066]
[1749937862687,0.50992987,105380.0,105370.0,0.48809066]
[1749937863035,0.50992987,105380.0,105370.0,0.45779066]
[1749937863661,0.50044077,105380.0,105370.0,0.48809066]
[1749937863878,0.50992978,105380.0,105370.0,0.48809066]
[1749937864749,0.01911965,105380.0,105370.0,0.48801066]
[1749937864955,0.62742205,105380.0,105370.0,0.48801066]
[1749937865383,0.01911965,105380.0,105370.0,0.48801066]
[1749937865600,0.62742205,105380.0,105370.0,0.48801066]
[1749937866447,0.01911965,105380.0,105370.0,0.48801066]
[1749937866662,0.00014217,105380.0,105370.0,1.19246228]
[1749937866878,0.00014217,105380.0,105370.0,1.8344128]
[1749937867090,0.00014217,105380.0,105370.0,2.51157388]
[1749937867304,0.01658724,105430.0,105420.0,0.28087382]
[1749937867514,0.01658724,105430.0,105420.0,0.48459382]
[1749937867717,0.01672965,105430.0,105420.0,0.50036471]
[1749937867921,0.01672965,105430.0,105420.0,1.10866711]
[1749937868338,0.01672965,105430.0,105420.0,1.20490887]
[1749937868869,0.01672965,105430.0,105420.0,0.59660647]
[1749937871270,0.01177104,105430.0,105420.0,0.59660647]
[1749937871471,0.01177104,105430.0,105420.0,0.59760647]
[1749937871802,0.01177104,105430.0,105420.0,0.59960647]
[1749937872399,0.62007344,105430.0,105420.0,0.59960647]
[1749937873076,0.01177104,105430.0,105420.0,0.59960647]
[1749937873290,0.62007344,105430.0,105420.0,0.59960647]
[1749937873723,0.60844481,105430.0,105420.0,0.59960647]
[1749937878303,0.00014241,105430.0,105420.0,0.59960647]
[1749937878507,0.60844481,105430.0,105420.0,0.59960647]
[1749937879553,0.60844481,105430.0,105420.0,0.59944647]
[1749937881863,0.61792905,105430.0,105420.0,0.31741558]
[1749937882080,0.87591342,105430.0,105420.0,0.003]
[1749937882295,1.51286417,105430.0,105420.0,0.003]
[1749937882729,1.51286417,105430.0,105420.0,0.16328]
[1749937883158,1.51954206,105430.0,105420.0,0.16028]
[1749937883344,1.51954209,105430.0,105420.0,0.16028]
[1749937883554,1.5195422,105430.0,105420.0,0.16028]
[1749937883776,1.5880479,105430.0,105420.0,0.16028]
[1749937883976,1.58804786,105430.0,105420.0,0.16028]
[1749937884190,1.58136988,105430.0,105420.0,0.16028]
[1749937884384,1.58804785,105430.0,105420.0,0.16028]
[1749937884591,1.58136988,105430.0,105420.0,0.16028]
[1749937885425,0.90546489,105430.0,105420.0,0.16028]
[1749937885831,0.91214283,105430.0,105420.0,0.16028]
[1749937886057,0.90546489,105430.0,105420.0,0.16028]
[1749937886264,0.91214285,105430.0,105420.0,0.16028]
[1749937886645,0.90546489,105430.0,105420.0,0.16028]
[1749937886953,0.27737355,105420.0,105410.0,0.21819284]
[1749937887163,0.81807336,105420.0,105410.0,0.37847284]
[1749937888377,0.82475136,105420.0,105410.0,0.37847284]
[1749937888593,0.83423695,105420.0,105410.0,0.37847284]
[1749937888792,0.93038619,105420.0,105410.0,0.37847284]
[1749937888997,0.93038619,105420.0,105410.0,0.36898671]
[1749937889219,0.83423695,105420.0,105410.0,0.18973373]
[1749937889428,0.8180739,105420.0,105410.0,0.36898716]
[1749937889643,0.82475194,105420.0,105410.0,0.36898716]
[1749937890069,0.8180739,105420.0,105410.0,0.37847374]
[1749937890281,0.67233742,105420.0,105410.0,0.37847374]
[1749937891595,0.68182274,105420.0,105410.0,0.37847374]
[1749937891808,0.6751447,105420.0,105410.0,0.37847374]
[1749937892014,0.68182274,105420.0,105410.0,0.37843374]
[1749937893493,0.7051447,105420.0,105410.0,0.37843374]
[1749937893694,0.71182274,105420.0,105410.0,0.37843374]
[1749937893908,0.7051447,105420.0,105410.0,0.37843374]
[1749937894345,0.7051447,105420.0,105400.0,0.25200601]
[1749937894346,0.00948631,105410.0,105400.0,0.25200601]
[1749937894567,0.57106954,105410.0,105400.0,0.42173304]
[1749937895647,0.58055576,105410.0,105400.0,0.42173304]
[1749937895854,0.58055576,105410.0,105400.0,0.42373304]
[1749937896401,0.58055576,105410.0,105400.0,0.42473304]
[1749937896577,0.04934208,105410.0,105400.0,0.45403304]
[1749937896813,0.59004189,105410.0,105400.0,0.45403304]
[1749937899385,0.55209665,105410.0,105400.0,0.45403304]
[1749937899591,0.56158269,105410.0,105400.0,0.45403304]
[1749937900007,0.56158269,105410.0,105400.0,0.42473304]
[1749937900631,0.55209665,105410.0,105400.0,0.42473304]
[1749937900836,0.02088279,105410.0,105400.0,0.45403304]
[1749937901048,0.5615826,105410.0,105400.0,0.45403304]
[1749937901265,0.55209665,105410.0,105400.0,0.51840831]
[1749937905751,0.01139684,105410.0,105400.0,0.51840831]
[1749937905963,0.55209665,105410.0,105400.0,0.51840831]
[1749937907363,0.61728489,105410.0,105400.0,0.51840831]
[1749937908084,0.00899684,105410.0,105400.0,0.51840831]
[1749937908320,0.61728489,105410.0,105400.0,0.54910831]
[1749937908475,0.00899684,105410.0,105400.0,0.64535007]
[1749937908697,0.00899684,105410.0,105400.0,1.25363812]
[1749937908902,0.00899684,105410.0,105400.0,1.6218642]
[1749937909105,0.00899684,105410.0,105400.0,1.65952577]
[1749937910008,0.00899684,105410.0,105400.0,1.65852577]
[1749937910225,0.00899684,105410.0,105400.0,1.63029969]
[1749937910424,0.00899684,105410.0,105400.0,1.63229969]
[1749937910628,0.00899684,105410.0,105400.0,1.68679205]
[1749937910791,0.00899684,105410.0,105400.0,1.66367133]
[1749937911000,0.00899684,105410.0,105400.0,1.66767133]
[1749937911198,0.00899684,105410.0,105400.0,1.59970671]
[1749937912008,0.00899684,105410.0,105400.0,1.64970671]
[1749937912217,0.00899684,105410.0,105400.0,1.64570671]
[1749937912647,0.00899684,105410.0,105400.0,1.92522671]
[1749937912850,0.00899684,105410.0,105400.0,1.38490328]
[1749937913099,0.00899684,105410.0,105400.0,1.92522671]
[1749937913288,0.00899684,105410.0,105400.0,2.46655014]
[1749937913469,0.00014241,105430.0,105420.0,0.55817382]
[1749937913663,0.00014241,105430.0,105420.0,1.49086252]
[1749937913869,0.00014241,105430.0,105420.0,1.52848742]
[1749937914337,0.00014241,105430.0,105420.0,1.49086252]
[1749937914721,0.00014241,105430.0,105420.0,1.50540337]
[1749937914930,0.00014241,105430.0,105420.0,1.5648096]
[1749937915128,0.00014241,105430.0,105420.0,1.5678096]
[1749937916556,0.00495706,105470.0,105460.0,0.21809106]
[1749937916772,0.00509941,105470.0,105460.0,0.44515668]
[1749937916985,0.00509941,105470.0,105460.0,0.42145106]
[1749937917414,0.54542284,105470.0,105460.0,0.42145106]
[1749937918266,0.54542284,105470.0,105460.0,0.42445106]
[1749937918663,0.57562284,105470.0,105460.0,0.22109106]
[1749937919073,0.54542284,105470.0,105460.0,0.42445106]
[1749937919287,0.54542284,105470.0,105460.0,0.22109106]
[1749937919495,0.63486531,105470.0,105460.0,0.21160943]
[1749937919707,0.92516621,105470.0,105460.0,0.003]
[1749937920002,0.81953643,105470.0,105460.0,0.17256226]
[1749937920227,0.81005561,105470.0,105460.0,0.16308]
[1749937920642,0.81005561,105470.0,105460.0,0.003]
[1749937920847,0.81005561,105470.0,105460.0,0.002]
[1749937921059,0.81005561,105470.0,105460.0,0.16008]
[1749937921519,0.07018217,105460.0,105450.0,0.22757872]
[1749937921729,0.62946985,105460.0,105450.0,0.42141619]
[1749937922342,0.82859702,105460.0,105450.0,0.19913086]
[1749937922549,0.81911521,105460.0,105450.0,0.18964788]
[1749937922778,0.81911521,105460.0,105450.0,0.41293375]
[1749937922987,0.81911521,105460.0,105450.0,0.42241646]
[1749937923395,0.81911521,105460.0,105450.0,0.43189908]
[1749937924288,0.81911521,105460.0,105450.0,0.43389908]
[1749937924491,0.81911521,105460.0,105450.0,0.41493375]
[1749937924694,0.81911521,105460.0,105450.0,0.42441646]
[1749937924901,0.61998714,105460.0,105450.0,0.41493375]
[1749937925075,0.57825067,105460.0,105450.0,0.48582321]
[1749937925299,0.77737829,105460.0,105450.0,0.4858233]
[1749937925509,0.79929684,105460.0,105450.0,0.4858233]
[1749937925725,0.82599806,105460.0,105450.0,0.4858233]
[1749937925947,0.82599811,105460.0,105450.0,0.4858233]
[1749937926142,0.82599814,105460.0,105450.0,0.49530592]
[1749937926343,0.04566504,105460.0,105450.0,0.56668845]
[1749937926565,0.01896317,105460.0,105450.0,0.56668845]
[1749937926720,0.02844507,105460.0,105450.0,0.56668845]
[1749937926927,0.02844507,105460.0,105450.0,0.53618845]
[1749937927420,0.01896317,105460.0,105450.0,0.53618845]
[1749937927548,0.02844507,105460.0,105450.0,0.53618845]
[1749937927748,0.02844507,105460.0,105450.0,0.47478161]
[1749937928175,0.5687685,105460.0,105450.0,0.47478161]
[1749937929157,0.5687685,105460.0,105450.0,0.44338161]
[1749937929594,0.5592866,105460.0,105450.0,0.44338161]
[1749937930773,0.56876841,105460.0,105450.0,0.44338161]
[1749937931185,0.5592866,105460.0,105450.0,0.44338161]
[1749937931391,0.5592866,105460.0,105450.0,0.47478161]
[1749937931604,0.03649928,105470.0,105460.0,0.21809106]
[1749937931821,0.55490327,105470.0,105460.0,0.21809106]
[1749937932034,0.55490327,105470.0,105460.0,0.24949106]
[1749937932035,0.56322165,105470.0,105460.0,0.24949106]
[1749937932245,0.57212124,105470.0,105460.0,0.27999106]
[1749937932470,0.55432169,105470.0,105460.0,0.27999106]
[1749937932678,0.54542271,105470.0,105460.0,0.27999106]
[1749937932908,0.54542271,105470.0,105460.0,0.24949106]
[1749937933116,0.55490327,105470.0,105460.0,0.24949106]
[1749937933538,0.54542271,105470.0,105460.0,0.24949106]
[1749937933954,0.00509928,105470.0,105460.0,0.32241787]
[1749937934161,0.00509928,105470.0,105460.0,0.28099106]
[1749937934372,0.54542271,105470.0,105460.0,0.28099106]
[1749937934992,0.54542271,105470.0,105460.0,0.28299106]
[1749937935872,0.00509928,105470.0,105460.0,0.28299106]
[1749937936087,0.00509928,105470.0,105460.0,0.37923282]
[1749937936297,0.00509928,105470.0,105460.0,0.45834939]
[1749937936769,0.94016016,105490.0,105480.0,0.21804973]
[1749937936999,0.88183466,105500.0,105490.0,0.22750827]
[1749937937210,1.08909856,105500.0,105490.0,0.21802951]
[1749937937422,1.09675245,105500.0,105490.0,0.22750863]
[1749937937634,1.09611958,105500.0,105490.0,0.20855048]
[1749937937843,1.10496474,105500.0,105490.0,0.20855048]
[1749937938055,1.10496511,105500.0,105490.0,0.20855048]
[1749937938277,1.61811978,105500.0,105490.0,0.20855048]
[1749937938483,1.62633185,105500.0,105490.0,0.20855048]
[1749937938688,1.60864127,105500.0,105490.0,0.20855048]
[1749937938875,1.62633113,105500.0,105490.0,0.20855048]
[1749937939080,1.60864093,105500.0,105490.0,0.20855048]
[1749937939303,1.60864088,105500.0,105490.0,0.20855048]
[1749937939494,1.62633065,105500.0,105490.0,0.20855048]
[1749937939695,1.61748577,105500.0,105490.0,0.20855048]
[1749937939860,1.62633066,105500.0,105490.0,0.20855048]
[1749937940065,1.70479014,105500.0,105490.0,0.36851048]
[1749937940263,1.60864092,105500.0,105490.0,0.36851048]
[1749937940503,1.62633081,105500.0,105490.0,0.36851048]
[1749937940682,1.62633077,105500.0,105490.0,0.36851048]
[1749937941068,1.599796,105500.0,105490.0,0.36851048]
[1749937941266,1.62633076,105500.0,105490.0,0.36851048]
[1749937941468,1.6364706,105500.0,105490.0,0.359031]
[1749937941799,1.6364706,105500.0,105490.0,0.16943957]
[1749937941979,1.63647057,105500.0,105490.0,0.16943957]
[1749937942177,1.64531547,105500.0,105490.0,0.16943957]
[1749937942378,1.62762568,105500.0,105490.0,0.16943957]
[1749937942583,1.65416041,105500.0,105490.0,0.16943957]
[1749937942779,1.6453155,105500.0,105490.0,0.16943957]
[1749937943034,1.65416041,105500.0,105490.0,0.16943957]
[1749937943168,1.6453155,105500.0,105490.0,0.16943957]
[1749937943500,1.66099323,105500.0,105490.0,0.15996]
[1749937943711,1.65209522,105500.0,105490.0,0.15996]
[1749937943882,1.66099323,105500.0,105490.0,0.15996]
[1749937944233,1.63652369,105500.0,105490.0,0.15996]
[1749937944385,1.66099323,105500.0,105490.0,0.15996]
[1749937944594,1.6431972,105500.0,105490.0,0.15996]
[1749937945014,1.66099323,105500.0,105490.0,0.15996]
[1749937945318,1.6431972,105500.0,105490.0,0.15996]
[1749937945531,1.65431972,105500.0,105490.0,0.15996]